bitfinex/quotes_BTCUSD_20250917
["timestamp","ask_amount","ask_price","bid_price","bid_amount"]
[1758152741617,0.0511,116480.0,116470.0,1.07569318]
[1758152741818,0.0812519,116480.0,116470.0,1.07569318]
[1758152743595,0.0001,116480.0,116470.0,1.07569318]
[1758152743806,0.0501,116480.0,116470.0,1.47569318]
[1758152744654,0.22180329,116480.0,116470.0,1.53888909]
[1758152744866,0.22180329,116480.0,116470.0,1.18852537]
[1758152745083,0.22180329,116480.0,116470.0,1.53888909]
[1758152748847,0.0501,116480.0,116470.0,1.53888909]
[1758152757042,0.22180329,116480.0,116470.0,1.53888909]
[1758152757224,0.0501,116480.0,116470.0,1.53888909]
[1758152760751,0.0001,116480.0,116470.0,1.88925281]
[1758152760968,0.0001,116480.0,116470.0,2.18925281]
[1758152761387,0.0001,116480.0,116470.0,2.48925281]
[1758152761601,0.0001,116480.0,116470.0,2.78925281]
[1758152761806,0.0001,116490.0,116480.0,0.17170329]
[1758152762022,0.22177408,116500.0,116480.0,0.59940552]
[1758152762245,0.22177408,116500.0,116490.0,0.89178194]
[1758152762452,0.22177408,116500.0,116490.0,1.29178194]
[1758152762871,0.22177408,116500.0,116490.0,1.29190281]
[1758152763280,0.6042497,116500.0,116490.0,0.49885054]
[1758152763486,0.6042497,116500.0,116490.0,0.76489054]
[1758152763487,0.6819397,116500.0,116490.0,0.76489054]
[1758152763688,0.6789797,116500.0,116490.0,0.76489054]
[1758152763890,0.32861598,116500.0,116490.0,0.76704054]
[1758152764114,0.32861598,116500.0,116490.0,0.37006054]
[1758152764786,0.32861598,116500.0,116490.0,0.37016054]
[1758152765375,0.32961598,116500.0,116490.0,0.37016054]
[1758152768392,0.32765598,116500.0,116490.0,0.37016054]
[1758152768588,0.30292598,116500.0,116490.0,0.54184909]
[1758152768790,0.30292598,116500.0,116490.0,0.62711876]
[1758152769288,0.25292571,116500.0,116490.0,0.62711876]
[1758152769516,0.25292571,116500.0,116490.0,0.63640876]
[1758152772685,0.20292571,116500.0,116490.0,0.63640876]
[1758152772878,0.25292571,116500.0,116490.0,1.03640876]
[1758152773546,0.25292571,116500.0,116490.0,0.63640876]
[1758152775790,0.0812519,116500.0,116490.0,0.63640876]
[1758152776539,0.0812519,116500.0,116490.0,0.98667207]
[1758152777017,0.0011,116500.0,116490.0,0.98667207]
[1758152777231,0.0011,116500.0,116490.0,1.33693538]
[1758152777451,0.0011,116500.0,116490.0,0.98667207]
[1758152777652,0.0001,116500.0,116490.0,1.38667207]
[1758152778668,0.0001,116500.0,116490.0,1.38767207]
[1758152782963,0.0501,116510.0,116500.0,0.17167381]
[1758152783163,0.0501,116510.0,116500.0,0.77357935]
[1758152784451,0.0501,116510.0,116500.0,1.17357935]
[1758152784833,0.0501,116510.0,116500.0,1.23854314]
[1758152785472,0.0501,116510.0,116500.0,1.23864314]
[1758152785650,0.0501,116510.0,116500.0,1.50940314]
[1758152786881,0.0501,116510.0,116500.0,1.51786522]
[1758152787455,0.0001,116510.0,116500.0,1.52636522]
[1758152787909,0.0501,116510.0,116500.0,1.52636522]
[1758152788134,0.05,116510.0,116500.0,1.52636522]
[1758152793663,0.22165908,116510.0,116500.0,1.52636522]
[1758152793987,0.05,116510.0,116500.0,1.52636522]
[1758152795021,0.22165908,116510.0,116500.0,1.88878314]
[1758152795221,0.05,116510.0,116500.0,1.88878314]
[1758152795407,0.22165908,116510.0,116500.0,1.88878314]
[1758152795907,0.22165908,116510.0,116500.0,1.88028314]
[1758152796070,0.05,116510.0,116500.0,1.88028314]
[1758152797155,0.22165908,116510.0,116500.0,1.24996983]
[1758152797364,0.24643908,116510.0,116500.0,1.46418604]
[1758152798145,0.22165908,116510.0,116500.0,1.46418604]
[1758152799617,0.05,116510.0,116500.0,1.46418604]
[1758152799821,0.05,116510.0,116500.0,1.47347604]
[1758152800030,0.05,116510.0,116500.0,1.48219378]
[1758152800416,0.22165908,116510.0,116500.0,1.83245709]
[1758152800919,0.22165908,116510.0,116500.0,1.48219378]
[1758152801162,0.22165908,116510.0,116500.0,1.83245709]
[1758152801380,0.05,116510.0,116500.0,1.83245709]
[1758152802274,0.22165908,116510.0,116500.0,1.83245709]
[1758152803348,0.05,116510.0,116500.0,1.83245709]
[1758152803567,0.22165908,116510.0,116500.0,1.83245709]
[1758152804351,0.05,116510.0,116500.0,1.83245709]
[1758152807053,0.05,116510.0,116500.0,1.82395709]
[1758152808088,0.17174435,116520.0,116510.0,0.17165908]
[1758152808312,0.22174435,116520.0,116510.0,0.96302173]
[1758152808514,0.22174435,116520.0,116510.0,0.62733842]
[1758152808717,0.22174435,116520.0,116510.0,0.97760173]
[1758152809057,0.0001,116520.0,116510.0,0.97760173]
[1758152809258,0.0511,116520.0,116510.0,0.97770173]
[1758152809463,0.0011,116520.0,116510.0,0.97770173]
[1758152811253,0.0011,116520.0,116510.0,1.37770173]
[1758152811766,0.0511,116520.0,116510.0,1.37770173]
[1758152811967,0.051,116520.0,116510.0,1.37770173]
[1758152812174,0.051,116520.0,116510.0,0.98620173]
[1758152812585,0.05,116520.0,116510.0,0.98620173]
[1758152812787,0.05,116520.0,116510.0,1.38620173]
[1758152815706,0.05,116520.0,116510.0,1.03593842]
[1758152815923,0.0302519,116530.0,116520.0,0.17164435]
[1758152816144,0.25188152,116530.0,116520.0,0.59187658]
[1758152816773,0.25188152,116530.0,116520.0,0.59197658]
[1758152817846,0.25288152,116530.0,116520.0,0.59197658]
[1758152818735,0.25288152,116530.0,116520.0,0.53278402]
[1758152819482,0.25288152,116530.0,116520.0,0.36113967]
[1758152820015,0.0812519,116530.0,116520.0,0.88304733]
[1758152820219,0.25288152,116530.0,116520.0,0.89233733]
[1758152820582,0.0511,116530.0,116520.0,0.89233733]
[1758152820781,0.22272962,116530.0,116520.0,0.977607]
[1758152820982,0.22272962,116530.0,116520.0,0.62734369]
[1758152821185,0.22272962,116530.0,116520.0,0.977607]
[1758152821578,0.22172962,116530.0,116520.0,0.977607]
[1758152823668,0.0501,116530.0,116520.0,0.977607]
[1758152824081,0.22162962,116530.0,116520.0,0.977607]
[1758152824307,0.05,116530.0,116520.0,0.977607]
[1758152824683,0.22181341,116540.0,116520.0,0.977607]
[1758152824938,0.25196531,116540.0,116530.0,0.36674225]
[1758152825139,0.25196531,116540.0,116530.0,0.17794967]
[1758152825343,0.25409531,116540.0,116530.0,0.18001967]
[1758152825543,0.27535531,116540.0,116530.0,0.18001967]
[1758152825754,0.27535531,116540.0,116530.0,0.18318967]
[1758152826192,0.27848531,116540.0,116530.0,0.18331054]
[1758152826395,0.27848531,116540.0,116530.0,0.2425031]
[1758152826573,0.27848531,116540.0,116530.0,0.2426031]
[1758152827418,0.27848531,116540.0,116530.0,0.18341054]
[1758152828249,0.27848531,116540.0,116530.0,0.53341047]
[1758152828992,0.27848531,116540.0,116530.0,0.53024047]
[1758152830148,0.27848531,116540.0,116530.0,0.18024054]
[1758152831184,0.27848531,116540.0,116530.0,0.35504016]
[1758152831369,0.27635531,116540.0,116530.0,0.53341047]
[1758152831879,0.27848531,116540.0,116530.0,0.53341047]
[1758152832550,0.27848531,116540.0,116530.0,0.61868014]
[1758152832751,0.25296531,116540.0,116530.0,0.53341047]
[1758152832953,0.25296531,116540.0,116530.0,0.70504009]
[1758152833084,0.25296531,116540.0,116530.0,0.53341047]
[1758152833810,0.27635531,116540.0,116530.0,0.53341047]
[1758152834223,0.27635531,116540.0,116530.0,0.18341054]
[1758152834555,0.27635531,116540.0,116530.0,0.35504016]
[1758152834756,0.27635531,116540.0,116530.0,0.70504009]
[1758152835341,0.27635531,116540.0,116530.0,0.35504016]
[1758152835550,0.27848531,116540.0,116530.0,0.35504016]
[1758152835746,0.27848531,116540.0,116530.0,0.53341047]
[1758152835946,0.27635531,116540.0,116530.0,0.53341047]
[1758152836161,0.27635531,116540.0,116530.0,0.70504009]
[1758152836800,0.27635531,116540.0,116530.0,0.53341047]
[1758152837002,0.27848531,116540.0,116530.0,0.53341047]
[1758152837595,0.25296531,116540.0,116530.0,0.53341047]
[1758152837775,0.25296531,116540.0,116530.0,0.70504009]
[1758152838227,0.25296531,116540.0,116530.0,0.53341047]
[1758152838531,0.27635531,116540.0,116530.0,0.53341047]
[1758152838740,0.27848531,116540.0,116530.0,0.53341047]
[1758152839570,0.27848531,116540.0,116530.0,0.18341054]
[1758152840108,0.27848531,116540.0,116530.0,0.18024054]
[1758152840607,0.27848531,116540.0,116530.0,0.18341054]
[1758152840898,0.25296531,116540.0,116530.0,0.35504016]
[1758152841637,0.25296531,116540.0,116530.0,0.18341054]
[1758152841844,0.27635531,116540.0,116530.0,0.18341054]
[1758152842081,0.27848531,116540.0,116530.0,0.18341054]
[1758152843150,0.27848531,116540.0,116530.0,0.35504016]
[1758152843349,0.27848531,116540.0,116530.0,0.70504009]
[1758152843521,0.27848531,116540.0,116530.0,0.53341047]
[1758152843727,0.27635531,116540.0,116530.0,0.53341047]
[1758152844081,0.27848531,116540.0,116530.0,0.53341047]
[1758152844289,0.27635531,116540.0,116530.0,0.53341047]
[1758152844653,0.27635531,116540.0,116530.0,0.70504009]
[1758152844875,0.27635531,116540.0,116530.0,0.53341047]
[1758152845211,0.27848531,116540.0,116530.0,0.53341047]
[1758152845383,0.25296531,116540.0,116530.0,0.88888014]
[1758152845594,0.25296531,116540.0,116530.0,1.06050976]
[1758152845791,0.25296531,116540.0,116530.0,1.06979976]
[1758152846231,0.25296531,116540.0,116530.0,1.06050976]
[1758152846656,0.25296531,116540.0,116530.0,0.71050983]
[1758152846793,0.25296531,116540.0,116530.0,1.06050976]
[1758152847255,0.25296531,116540.0,116530.0,0.88888014]
[1758152847480,0.3021228,116540.0,116530.0,0.88888014]
[1758152848149,0.3042528,116540.0,116530.0,0.53571021]
[1758152848330,0.3042528,116540.0,116530.0,0.45044054]
[1758152849437,0.3021228,116540.0,116530.0,0.45361054]
[1758152849750,0.3042528,116540.0,116530.0,0.45361054]
[1758152849927,0.2808628,116540.0,116530.0,0.45361054]
[1758152850517,0.3042528,116540.0,116530.0,0.45361054]
[1758152852263,0.3042528,116540.0,116530.0,0.80361047]
[1758152852955,0.3042528,116540.0,116530.0,0.45361054]
[1758152853156,0.3042528,116540.0,116530.0,0.80361047]
[1758152853501,0.2787328,116540.0,116530.0,0.88864014]
[1758152854939,0.2787328,116540.0,116530.0,1.06026976]
[1758152859622,0.2787328,116540.0,116530.0,0.79006976]
[1758152859821,0.3034628,116540.0,116530.0,1.06014976]
[1758152860040,0.2787328,116540.0,116530.0,0.88852014]
[1758152860245,0.2787328,116540.0,116530.0,0.80325047]
[1758152862344,0.2787328,116540.0,116530.0,0.97488009]
[1758152863813,0.2787328,116540.0,116530.0,0.80325047]
[1758152864322,0.2787328,116540.0,116530.0,0.45325054]
[1758152864533,0.2787328,116540.0,116530.0,0.80325047]
[1758152864740,0.2807128,116540.0,116530.0,0.80325047]
[1758152864988,0.2787328,116540.0,116530.0,0.81175047]
[1758152865193,0.2787328,116540.0,116530.0,0.98338009]
[1758152865403,0.2787328,116540.0,116530.0,0.89702014]
[1758152867918,0.2787328,116540.0,116530.0,0.54702021]
[1758152868120,0.2787328,116540.0,116530.0,0.81175047]
[1758152868334,0.3034628,116540.0,116530.0,0.81175047]
[1758152868864,0.3034628,116540.0,116530.0,0.46175054]
[1758152869204,0.3034628,116540.0,116530.0,0.81175047]
[1758152872415,0.3034628,116540.0,116530.0,0.46175054]
[1758152872591,0.3034628,116540.0,116530.0,0.81175047]
[1758152873444,0.2787328,116540.0,116530.0,0.98338009]
[1758152875450,0.2787328,116540.0,116530.0,1.06864976]
[1758152878669,0.0011,116540.0,116530.0,1.42793969]
[1758152879083,0.0011,116540.0,116530.0,1.85370259]
[1758152879288,0.001,116540.0,116530.0,1.85370259]
[1758152879491,0.0001,116550.0,116540.0,0.17161489]
[1758152879694,0.0001,116550.0,116540.0,1.02853698]
[1758152879907,0.0001,116550.0,116540.0,1.03055698]
[1758152880124,0.0001,116550.0,116540.0,1.43055698]
[1758152880259,0.0001,116550.0,116540.0,1.45631912]
[1758152880664,0.0001,116550.0,116540.0,1.45641912]
[1758152881657,0.0501,116560.0,116550.0,0.17160017]
[1758152881841,0.0501,116560.0,116550.0,0.96403944]
[1758152882040,0.0501,116560.0,116550.0,0.97649944]
[1758152882912,0.0501,116560.0,116550.0,1.00226018]
[1758152883318,0.0501,116560.0,116550.0,1.00236018]
[1758152884605,0.0001,116560.0,116550.0,1.00236018]
[1758152884864,0.0001,116560.0,116550.0,1.35236011]
[1758152885099,0.0005,116570.0,116560.0,0.17158544]
[1758152885308,0.0505,116570.0,116560.0,1.50047753]
[1758152885510,0.0505,116570.0,116560.0,1.50243753]
[1758152885949,0.0504,116570.0,116560.0,1.17791936]
[1758152886693,0.22197073,116570.0,116560.0,1.17791936]
[1758152887262,0.0504,116570.0,116560.0,1.17791936]
[1758152888171,0.0504,116570.0,116560.0,1.17801936]
[1758152888569,0.0504,116570.0,116560.0,1.18684467]
[1758152889347,0.0504,116570.0,116560.0,1.58684467]
[1758152889774,0.0004,116570.0,116560.0,1.65255397]
[1758152890828,0.0004,116570.0,116560.0,1.65355397]
[1758152891690,0.0004,116570.0,116560.0,1.95355397]
[1758152892833,0.0004,116570.0,116560.0,2.22331397]
[1758152895460,0.0004,116570.0,116560.0,2.52331397]
[1758152898073,0.0004,116570.0,116560.0,3.23399397]
[1758152898278,0.0004,116570.0,116560.0,3.58371606]
[1758152898721,0.0004,116570.0,116560.0,3.23399397]
[1758152899532,0.0004,116570.0,116560.0,3.23299397]
[1758152899965,0.0004,116570.0,116560.0,3.23599397]
[1758152901912,0.0004,116570.0,116560.0,2.96623397]
[1758152902092,0.0004,116570.0,116560.0,2.88615188]
[1758152902306,0.0004,116570.0,116560.0,2.96623397]
[1758152902540,0.0004,116570.0,116560.0,2.88615188]
[1758152902771,0.0004,116570.0,116560.0,3.23587397]
[1758152904846,0.0004,116570.0,116560.0,2.61651188]
[1758152905064,0.0004,116570.0,116560.0,3.23583397]
[1758152905229,0.0004,116570.0,116560.0,2.89583397]
[1758152905635,0.0004,116570.0,116560.0,2.62623397]
[1758152905850,0.0004,116570.0,116560.0,2.89583397]
[1758152906447,0.0004,116570.0,116560.0,2.59583397]
[1758152906646,0.0004,116570.0,116560.0,2.89583397]
[1758152906847,0.0004,116570.0,116560.0,2.88733397]
[1758152911292,0.0004,116570.0,116560.0,2.53761188]
[1758152911492,0.0004,116570.0,116560.0,2.88733397]
[1758152911783,0.0004,116570.0,116560.0,2.89583397]
[1758152912412,0.0004,116570.0,116560.0,2.52515397]
[1758152912537,0.0004,116570.0,116560.0,2.51665397]
[1758152913528,0.0004,116570.0,116560.0,2.16693188]
[1758152913738,0.0004,116570.0,116560.0,2.51665397]
[1758152917799,0.0004,116570.0,116560.0,2.52515397]
[1758152931687,0.0004,116570.0,116560.0,2.89575397]
[1758152939575,0.0004,116570.0,116560.0,2.54603188]
[1758152939773,0.0004,116570.0,116560.0,2.89559397]
[1758152942442,0.0004,116570.0,116560.0,2.88709397]
[1758152947635,0.0004,116570.0,116560.0,2.89559397]
[1758152947847,0.0004,116570.0,116560.0,3.59478411]
[1758152948074,0.0004,116570.0,116560.0,3.2451467]
[1758152949065,0.0004,116570.0,116560.0,3.59478411]
[1758152950822,0.0004,116570.0,116560.0,3.22418411]
[1758152959959,0.0004,116570.0,116560.0,3.21568411]
[1758152965100,0.0004,116570.0,116560.0,3.22418411]
[1758152970012,0.0004,116570.0,116560.0,3.59478411]
[1758153001802,0.0004,116570.0,116560.0,3.29450411]
[1758153005006,0.0004,116570.0,116560.0,3.01605411]
[1758153005207,0.0004,116570.0,116560.0,2.9355367]
[1758153005417,0.0004,116570.0,116560.0,2.9448267]
[1758153007713,0.0004,116570.0,116560.0,3.29446411]
[1758153008666,0.0004,116570.0,116560.0,3.02534411]
[1758153008934,0.0004,116570.0,116560.0,3.29446411]
[1758153009835,0.0004,116570.0,116560.0,2.5866926]
[1758153015076,0.0004,116570.0,116560.0,2.5951926]
[1758153015994,0.0004,116570.0,116560.0,1.96714188]
[1758153016211,0.0004,116570.0,116560.0,2.2858626]
[1758153016417,0.02437,116570.0,116560.0,2.2858626]
[1758153016826,0.0004,116570.0,116560.0,2.2858626]
[1758153022782,0.0004,116570.0,116560.0,1.9152626]
[1758153022994,0.0004,116570.0,116560.0,1.9067626]
[1758153024999,0.17396073,116570.0,116560.0,0.56792388]
[1758153025212,0.63069335,116570.0,116560.0,0.47645498]
[1758153025424,0.70645331,116570.0,116560.0,0.46762967]
[1758153025634,0.70645331,116570.0,116560.0,0.73666967]
[1758153026244,1.04655331,116570.0,116560.0,0.36590967]
[1758153026450,1.13182298,116570.0,116560.0,0.36290967]
[1758153026657,1.13182298,116570.0,116560.0,0.36280967]
[1758153028193,1.13382298,116570.0,116560.0,0.35430967]
[1758153028980,1.13182298,116570.0,116560.0,0.35430967]
[1758153029218,1.13182298,116570.0,116560.0,0.08526967]
[1758153029451,0.22160017,116550.0,116540.0,0.0001]
[1758153029680,0.61857464,116550.0,116540.0,0.19880967]
[1758153029887,1.03750464,116550.0,116540.0,0.08536967]
[1758153030132,1.38714536,116550.0,116540.0,0.35440967]
[1758153030355,1.063373,116550.0,116540.0,0.35440967]
[1758153030566,1.44316562,116550.0,116540.0,0.35430967]
[1758153031965,0.27161489,116540.0,116530.0,0.47196087]
[1758153032144,0.71429862,116540.0,116530.0,0.82627054]
[1758153033143,0.71629862,116540.0,116530.0,0.82627054]
[1758153034034,0.65228561,116540.0,116530.0,0.82627054]
[1758153036187,0.67805634,116540.0,116530.0,0.82627054]
[1758153036889,0.32841562,116540.0,116530.0,0.82627054]
[1758153037097,0.32982679,116540.0,116530.0,1.34966088]
[1758153037302,0.1082119,116540.0,116530.0,1.34966088]
[1758153037520,0.0021,116540.0,116530.0,1.43803055]
[1758153037745,0.002,116540.0,116530.0,1.74732055]
[1758153038594,0.05,116550.0,116540.0,0.17161489]
[1758153038798,0.05,116550.0,116540.0,0.60864528]
[1758153039031,0.05,116550.0,116540.0,0.61174528]
[1758153039235,0.24601572,116560.0,116550.0,0.17160017]
[1758153039437,0.24601572,116560.0,116550.0,0.87559056]
[1758153039640,0.0501,116560.0,116550.0,0.88081056]
[1758153039822,0.19601544,116560.0,116550.0,0.88081056]
[1758153039968,0.24601544,116560.0,116550.0,0.88081056]
[1758153040182,0.02443,116560.0,116550.0,0.88081056]
[1758153040424,0.0031,116560.0,116550.0,1.31582095]
[1758153040622,0.003,116560.0,116550.0,1.63361095]
[1758153040838,0.003,116560.0,116550.0,1.93361095]
[1758153041068,0.003,116560.0,116550.0,2.33361095]
[1758153042244,0.0004,116570.0,116560.0,0.17158544]
[1758153042453,0.0004,116570.0,116560.0,0.75836839]
[1758153042734,0.0004,116570.0,116560.0,0.77287839]
[1758153042979,0.0004,116570.0,116560.0,1.17287839]
[1758153044133,0.0004,116570.0,116560.0,1.23876151]
[1758153044565,0.0004,116570.0,116560.0,1.23886151]
[1758153049854,0.0004,116570.0,116560.0,1.22957151]
[1758153050061,0.0004,116570.0,116560.0,1.23807151]
[1758153051083,0.0004,116570.0,116560.0,0.88843079]
[1758153051292,0.0004,116570.0,116560.0,1.23807151]
[1758153052626,0.0004,116570.0,116560.0,0.88843079]
[1758153052837,0.0004,116570.0,116560.0,1.23807151]
[1758153053257,0.0004,116570.0,116560.0,0.88843079]
[1758153053468,0.17714073,116570.0,116560.0,0.81732767]
[1758153053682,0.28162263,116570.0,116560.0,0.45550967]
[1758153053889,0.33162263,116570.0,116560.0,0.45550967]
[1758153054096,0.68126335,116570.0,116560.0,0.45550967]
[1758153054306,0.68126335,116570.0,116560.0,0.18654967]
[1758153054509,0.68126335,116570.0,116560.0,0.45550967]
[1758153054724,0.76663302,116570.0,116560.0,0.45550967]
[1758153054924,0.76663302,116570.0,116560.0,0.18654967]
[1758153055129,1.10663302,116570.0,116560.0,0.45550967]
[1758153055586,1.13239717,116570.0,116560.0,0.45550967]
[1758153056015,1.13439717,116570.0,116560.0,0.45550967]
[1758153056233,1.13239717,116570.0,116560.0,0.45550967]
[1758153058216,1.13539717,116570.0,116560.0,0.45550967]
[1758153058636,0.70048678,116570.0,116560.0,0.45550967]
[1758153058852,0.65048678,116570.0,116560.0,0.45550967]
[1758153059084,0.70048678,116570.0,116560.0,0.45550967]
[1758153069810,1.05033407,116570.0,116560.0,0.45550967]
[1758153070018,0.67159263,116570.0,116560.0,0.45758967]
[1758153070216,0.33159263,116570.0,116560.0,0.9790224]
[1758153070419,0.30726263,116570.0,116560.0,1.06429207]
[1758153070635,0.1571719,116570.0,116560.0,1.06752207]
[1758153070843,0.32874263,116570.0,116560.0,1.06752207]
[1758153071684,0.1571719,116570.0,116560.0,1.06752207]
[1758153071885,0.32874263,116570.0,116560.0,1.06752207]
[1758153072295,0.33079263,116570.0,116560.0,1.06752207]
[1758153073043,0.1592219,116570.0,116560.0,1.06752207]
[1758153073475,0.1071719,116570.0,116560.0,1.06752207]
[1758153073678,0.32874263,116570.0,116560.0,1.06752207]
[1758153074997,0.33079263,116570.0,116560.0,1.06752207]
[1758153075507,0.30522263,116570.0,116560.0,1.06752207]
[1758153075706,0.30727263,116570.0,116560.0,1.06752207]
[1758153075911,0.33079263,116570.0,116560.0,0.44548478]
[1758153076112,0.33079263,116570.0,116560.0,0.9789824]
[1758153078755,0.33079263,116570.0,116560.0,0.9822124]
[1758153080203,0.33079263,116570.0,116560.0,1.3528924]
[1758153081596,0.1035,116570.0,116560.0,1.3528924]
[1758153081798,0.1035,116570.0,116560.0,1.3443924]
[1758153082236,0.1035,116570.0,116560.0,1.42966207]
[1758153082439,0.0035,116570.0,116560.0,1.43816207]
[1758153082656,0.0535,116570.0,116560.0,1.78800936]
[1758153082859,0.0035,116570.0,116560.0,1.79729936]
[1758153083276,0.0034,116570.0,116560.0,1.79729936]
[1758153084381,0.0534,116570.0,116560.0,1.79729936]
[1758153084625,0.0534,116570.0,116560.0,2.19729936]
[1758153085541,0.0504,116570.0,116560.0,1.49760478]
[1758153085756,0.0524,116570.0,116560.0,2.18800936]
[1758153087011,0.0024,116570.0,116560.0,2.18800936]
[1758153087229,0.0524,116570.0,116560.0,2.18800936]
[1758153088316,0.0524,116570.0,116560.0,1.91908936]
[1758153088534,0.0024,116570.0,116560.0,2.18800936]
[1758153088813,0.0524,116570.0,116560.0,2.18800936]
[1758153089039,0.0024,116570.0,116560.0,2.19729936]
[1758153089477,0.0024,116570.0,116560.0,1.92837936]
[1758153089708,0.0024,116570.0,116560.0,2.19725936]
[1758153089920,0.0004,116570.0,116560.0,2.19725936]
[1758153090137,0.0004,116570.0,116560.0,1.92837936]
[1758153090357,0.0004,116570.0,116560.0,2.19725936]
[1758153091416,0.0004,116570.0,116560.0,2.18796936]
[1758153094886,0.0004,116570.0,116560.0,1.21939478]
[1758153095094,0.0004,116570.0,116560.0,2.18796936]
[1758153097358,0.0004,116570.0,116560.0,2.17946936]
[1758153097581,0.0004,116570.0,116560.0,1.47977478]
[1758153097796,0.0004,116570.0,116560.0,2.17946936]
[1758153100472,0.0004,116570.0,116560.0,1.47977478]
[1758153100677,0.0004,116570.0,116560.0,2.17946936]
[1758153102407,0.0004,116570.0,116560.0,2.18796936]
[1758153106512,0.0004,116570.0,116560.0,1.48827478]
[1758153106688,0.0004,116570.0,116560.0,2.18796936]
[1758153108666,0.0004,116570.0,116560.0,1.83812207]
[1758153110732,0.0004,116570.0,116560.0,2.18796936]
[1758153113667,0.0004,116570.0,116560.0,1.83812207]
[1758153114670,0.0004,116570.0,116560.0,1.83808207]
[1758153114870,0.0004,116570.0,116560.0,2.18792936]
[1758153116020,0.0004,116570.0,116560.0,2.17942936]
[1758153117139,0.0004,116570.0,116560.0,2.18871936]
[1758153118304,0.0004,116570.0,116560.0,1.91987936]
[1758153118551,0.0004,116570.0,116560.0,1.48898478]
[1758153118803,0.0004,116570.0,116560.0,2.18867936]
[1758153119745,0.0004,116570.0,116560.0,2.17938936]
[1758153121128,0.0004,116570.0,116560.0,2.18788936]
[1758153121920,0.0004,116570.0,116560.0,1.48819478]
[1758153122132,0.0004,116570.0,116560.0,2.18788936]
[1758153122832,0.0004,116570.0,116560.0,2.19717936]
[1758153124820,0.0004,116570.0,116560.0,2.18788936]
[1758153128071,0.0004,116570.0,116560.0,1.48819478]
[1758153128303,0.0004,116570.0,116560.0,2.18788936]
[1758153131785,0.0004,116570.0,116560.0,1.83791103]
[1758153135489,0.0004,116570.0,116560.0,1.48819478]
[1758153135688,0.0004,116570.0,116560.0,1.83791103]
[1758153135915,0.0004,116570.0,116560.0,1.43791103]
[1758153137753,0.0004,116570.0,116560.0,1.16911103]
[1758153137963,0.0004,116570.0,116560.0,1.43787103]
[1758153138746,0.0004,116570.0,116560.0,1.83787103]
[1758153139271,0.0004,116570.0,116560.0,1.56911103]
[1758153139495,0.0004,116570.0,116560.0,1.83787103]
[1758153144134,0.0004,116570.0,116560.0,1.56911103]
[1758153144337,0.0004,116570.0,116560.0,1.83787103]
[1758153148105,0.0004,116570.0,116560.0,1.8636287]
[1758153149175,0.0004,116570.0,116560.0,1.8729187]
[1758153153105,0.0004,116570.0,116560.0,1.6041587]
[1758153153313,0.0004,116570.0,116560.0,1.8728787]
[1758153155723,0.0004,116570.0,116560.0,1.8643787]
[1758153159579,0.0004,116570.0,116560.0,1.8550887]
[1758153160670,0.0004,116570.0,116560.0,1.51387245]
[1758153160896,0.0004,116570.0,116560.0,1.8635887]
[1758153161123,0.0004,116570.0,116560.0,1.51387245]
[1758153161357,0.0004,116570.0,116560.0,1.8635887]
[1758153163309,0.0004,116570.0,116560.0,1.51387245]
[1758153163532,0.19986073,116570.0,116560.0,1.10852245]
[1758153163749,0.59957698,116570.0,116560.0,0.58298734]
[1758153163959,0.64957698,116570.0,116560.0,0.82590967]
[1758153164636,0.67972888,116570.0,116560.0,0.55722967]
[1758153164855,0.67972888,116570.0,116560.0,0.82590967]
[1758153165068,0.79075994,116570.0,116560.0,0.82590967]
[1758153165837,0.35577402,116570.0,116560.0,0.82590967]
[1758153166052,0.70549027,116570.0,116560.0,0.81740967]
[1758153166350,0.70749027,116570.0,116560.0,0.81740967]
[1758153166762,0.70759027,116570.0,116560.0,0.81740967]
[1758153169113,0.70759027,116570.0,116560.0,0.54872967]
[1758153169342,0.79285994,116570.0,116560.0,0.81744967]
[1758153173368,0.44314369,116570.0,116560.0,0.81744967]
[1758153173551,0.79285994,116570.0,116560.0,0.81744967]
[1758153177492,0.79285994,116570.0,116560.0,0.54872967]
[1758153177994,0.79285994,116570.0,116560.0,0.81744967]
[1758153178609,0.79285994,116570.0,116560.0,0.54872967]
[1758153178834,0.79285994,116570.0,116560.0,0.81744967]
[1758153180268,0.44314369,116570.0,116560.0,0.81744967]
[1758153180411,0.79285994,116570.0,116560.0,0.81744967]
[1758153181168,0.35787402,116570.0,116560.0,0.81744967]
[1758153181339,0.70759027,116570.0,116560.0,0.81744967]
[1758153185641,0.35787402,116570.0,116560.0,0.81744967]
[1758153185861,0.70759027,116570.0,116560.0,0.81744967]
[1758153188366,0.70759027,116570.0,116560.0,0.54872967]
[1758153188586,0.79285994,116570.0,116560.0,0.81744967]
[1758153189131,1.13285994,116570.0,116560.0,0.54872967]
[1758153189347,1.13285994,116570.0,116560.0,0.3615]
[1758153189744,1.13285994,116570.0,116560.0,0.26872]
[1758153190734,1.13085994,116570.0,116560.0,0.26872]
[1758153193716,1.48100729,116570.0,116560.0,0.26872]
[1758153200743,0.56158544,116560.0,116550.0,0.0001]
[1758153201087,1.34671871,116560.0,116550.0,0.35408967]
[1758153201537,1.40172519,116560.0,116550.0,0.35408967]
[1758153201835,1.40182519,116560.0,116550.0,0.35408967]
[1758153202136,1.40282519,116560.0,116550.0,0.35408967]
[1758153202847,0.70296159,116560.0,116550.0,0.35408967]
[1758153203017,1.40282519,116560.0,116550.0,0.35408967]
[1758153207407,1.41137666,116560.0,116550.0,0.35408967]
[1758153208769,1.40282519,116560.0,116550.0,0.35408967]
[1758153221732,1.48297709,116560.0,116550.0,0.08536967]
[1758153221924,1.48297709,116560.0,116550.0,0.26882]
[1758153222132,1.48297709,116560.0,116550.0,0.26872]
[1758153225570,1.83290889,116560.0,116550.0,0.26872]
[1758153228225,1.54837095,116560.0,116550.0,0.26872]
[1758153228730,0.84850735,116560.0,116550.0,0.26872]
[1758153228918,1.54837095,116560.0,116550.0,0.26872]
[1758153231074,0.84850735,116560.0,116550.0,0.26872]
[1758153231284,1.54837095,116560.0,116550.0,0.26872]
[1758153237460,0.56160017,116550.0,116540.0,0.09274]
[1758153237673,1.31359086,116550.0,116540.0,0.44672967]
[1758153237894,1.31578086,116550.0,116540.0,0.44672967]
[1758153238107,1.39593276,116550.0,116540.0,0.44672967]
[1758153238316,1.42170181,116550.0,116540.0,0.44672967]
[1758153238530,1.42170181,116550.0,116540.0,0.08536967]
[1758153238760,1.42170181,116550.0,116540.0,0.35408967]
[1758153238970,1.42170181,116550.0,116540.0,0.26882]
[1758153239203,1.42170181,116550.0,116540.0,0.26872]
[1758153241028,0.72183821,116550.0,116540.0,0.26872]
[1758153241233,1.42170181,116550.0,116540.0,0.26872]
[1758153242948,0.64176679,116540.0,116530.0,0.64112087]